bitfinex/quotes_SOLUSD_20240620
["timestamp","ask_amount","ask_price","bid_price","bid_amount"]
[1718861314224,0.51,135.43,135.34,6.5723]
[1718861314421,0.17,135.42,135.34,6.5723]
[1718861319144,7.7248,135.42,135.34,6.5723]
[1718861319456,0.17,135.41,135.34,6.5723]
[1718861319662,0.34,135.41,135.34,6.5723]
[1718861319851,7.725,135.41,135.34,6.5723]
[1718861320149,0.17,135.4,135.34,6.5723]
[1718861321957,0.34,135.41,135.34,6.5723]
[1718861322155,7.3834,135.44,135.34,6.5723]
[1718861322339,7.71365578,135.45,135.35,20.0]
[1718861322545,7.383,135.45,135.35,20.0]
[1718861323454,7.383,135.45,135.39,7.34]
[1718861323455,7.34,135.44,135.39,7.34]
[1718861324157,14.7234,135.44,135.38,7.34]
[1718861324559,0.17,135.43,135.38,7.34]
[1718861324747,7.68,135.43,135.38,7.34]
[1718861325359,7.68,135.43,135.35,20.0]
[1718861325556,7.68,135.43,135.38,7.34]
[1718861325751,7.68,135.43,135.37,7.34]
[1718861328760,7.68,135.43,135.38,7.34]
[1718861330681,0.34,135.43,135.38,7.34]
[1718861330868,7.85,135.44,135.38,7.34]
[1718861331162,0.17,135.43,135.39,7.34]
[1718861331542,5.83027664,135.47,135.39,7.34]
[1718861331747,7.34,135.44,135.39,7.34]
[1718861332143,7.3819,135.47,135.39,7.34]
[1718861332344,7.34,135.45,135.4,7.34]
[1718861332855,0.17,135.44,135.4,7.34]
[1718861335647,0.17,135.44,135.39,7.34]
[1718861336160,7.68,135.44,135.35,20.0]
[1718861336357,0.17,135.43,135.39,7.34]
[1718861336875,0.17,135.43,135.4,6.2657]
[1718861339049,0.17,135.43,135.39,7.34]
[1718861339248,7.51,135.42,135.37,6.2188]
[1718861339461,0.34,135.41,135.37,6.2188]
[1718861339786,7.51,135.4,135.31,6.2188]
[1718861339958,7.34,135.4,135.35,7.34]
[1718861340150,7.68,135.41,135.36,7.34]
[1718861340546,0.34,135.41,135.36,7.34]
[1718861340855,0.34,135.41,135.37,7.34]
[1718861341578,0.34,135.41,135.31,35.5788]
[1718861341579,0.17,135.4,135.31,35.5788]
[1718861341874,7.68,135.41,135.36,7.34]
[1718861343066,7.68,135.41,135.32,20.0]
[1718861343376,7.68,135.4,135.35,7.34]
[1718861343578,0.17,135.39,135.35,7.34]
[1718861344775,15.1429,135.45,135.34,0.17]
[1718861344974,15.1429,135.45,135.4,7.34]
[1718861345280,22.4829,135.45,135.4,7.34]
[1718861346473,0.17,135.44,135.4,7.34]
[1718861346667,15.1429,135.45,135.4,7.34]
[1718861346866,22.4829,135.45,135.4,7.34]
[1718861347275,7.34,135.44,135.34,0.51]
[1718861347462,7.34,135.44,135.39,7.34]
[1718861347659,7.34,135.43,135.33,6.2902]
[1718861347870,7.34,135.42,135.36,7.34]
[1718861348465,0.17,135.41,135.36,7.34]
[1718861348665,0.17,135.41,135.37,7.34]
[1718861349077,0.51,135.42,135.37,7.34]
[1718861349395,15.2345,135.42,135.34,20.0]
[1718861349572,7.34,135.4,135.35,7.34]
[1718861350285,7.34,135.41,135.36,7.34]
[1718861350489,7.85,135.42,135.36,7.34]
[1718861351296,7.85,135.42,135.34,20.0]
[1718861351508,7.34,135.4,135.34,7.34]
[1718861351676,0.17,135.39,135.34,7.34]
[1718861352067,0.34,135.39,135.34,7.34]
[1718861352390,0.17,135.38,135.34,7.34]
[1718861352573,0.34,135.38,135.34,7.34]
[1718861352965,0.17,135.37,135.33,7.34]
[1718861353166,0.34,135.37,135.33,7.34]
[1718861353382,0.34,135.37,135.3,6.1537]
[1718861353692,0.34,135.37,135.33,7.34]
[1718861353871,0.17,135.37,135.33,7.34]
[1718861354071,0.17,135.38,135.34,7.34]
[1718861354271,0.51,135.38,135.34,7.34]
[1718861355191,7.85,135.38,135.33,7.34]
[1718861355683,7.85,135.38,135.34,7.34]
[1718861355684,0.51,135.38,135.34,7.34]
[1718861356180,0.51,135.38,135.35,7.34]
[1718861356588,0.51,135.38,135.34,7.34]
[1718861358170,0.51,135.38,135.33,7.34]
[1718861358973,0.51,135.38,135.34,7.34]
[1718861359290,0.51,135.38,135.33,7.34]
[1718861360389,0.51,135.38,135.34,7.34]
[1718861363895,7.388,135.36,135.26,14.02381148]
[1718861364101,15.2386,135.35,135.27,20.0]
[1718861364300,15.2386,135.35,135.29,7.34]
[1718861364677,15.2386,135.35,135.23,6.4417]
[1718861364678,31.1068,135.33,135.23,6.4417]
[1718861364890,7.51,135.32,135.27,7.34]
[1718861365299,0.17,135.32,135.28,7.34]
[1718861365597,0.17,135.32,135.24,29.36]
[1718861365772,0.17,135.32,135.28,7.34]
[1718861366485,23.7174,135.33,135.28,7.34]
[1718861366686,23.7174,135.33,135.24,29.36]
[1718861366687,16.3774,135.33,135.29,7.34]
[1718861366891,16.3774,135.33,135.3,7.34]
[1718861368589,16.3774,135.33,135.29,7.34]
[1718861368901,16.3774,135.33,135.3,7.34]
[1718861369279,23.4673,135.36,135.31,7.34]
[1718861369486,16.1273,135.36,135.31,7.34]
[1718861369785,23.4673,135.36,135.31,7.34]
[1718861370292,16.1273,135.36,135.32,7.34]
[1718861370516,16.1273,135.36,135.33,7.34]
[1718861370690,7.3865,135.39,135.29,6.3453]
[1718861370691,16.5579,135.39,135.29,6.3453]
[1718861370904,16.5579,135.39,135.35,7.34]
[1718861371294,16.5579,135.39,135.31,7.34]
[1718861371504,16.5579,135.39,135.3,20.0]
[1718861372890,7.3872,135.37,135.3,20.0]
[1718861373298,0.34,135.38,135.3,20.0]
[1718861373495,7.7266,135.38,135.3,20.0]
[1718861373807,7.5571,135.37,135.3,20.0]
[1718861374005,0.17,135.36,135.3,20.0]
[1718861374304,0.34,135.36,135.3,20.0]
[1718861375099,0.34,135.36,135.27,0.17]
[1718861375306,0.17,135.35,135.27,20.0]
[1718861375509,0.34,135.35,135.27,20.0]
[1718861375889,0.34,135.34,135.27,20.0]
[1718861376085,0.17,135.33,135.27,20.0]
[1718861376286,15.8774,135.33,135.27,20.0]
[1718861376519,0.17,135.32,135.23,6.4487]
[1718861376801,7.9,135.32,135.23,6.4487]
[1718861377002,0.17,135.31,135.23,6.4487]
[1718861377206,0.34,135.31,135.23,6.4487]
[1718861377398,0.17,135.3,135.23,6.4487]
[1718861377598,0.34,135.3,135.23,6.4487]
[1718861380384,23.0967,135.33,135.23,6.4487]
[1718861380385,15.7074,135.33,135.23,6.4487]
[1718861380595,15.7074,135.33,135.24,20.17]
[1718861380998,15.7074,135.33,135.25,0.17]
[1718861381702,15.7074,135.33,135.24,42.22]
[1718861381890,23.0968,135.33,135.24,42.05]
[1718861382291,15.7074,135.33,135.24,42.05]
[1718861382902,0.17,135.32,135.24,42.05]
[1718861383106,0.34,135.32,135.24,42.05]
[1718861383424,7.73,135.32,135.24,42.05]
[1718861383707,13.7707,135.31,135.24,20.0]
[1718861383909,0.17,135.3,135.22,20.0]
[1718861384103,0.34,135.3,135.22,20.0]
[1718861384507,6.3803,135.31,135.22,20.0]
[1718861384891,0.34,135.3,135.22,20.0]
[1718861385600,0.17,135.29,135.22,20.0]
[1718861385792,0.34,135.3,135.22,20.0]
[1718861385988,0.17,135.29,135.22,20.0]
[1718861386203,0.34,135.29,135.22,20.0]
[1718861386407,0.17,135.28,135.22,20.0]
[1718861386711,0.17,135.29,135.22,20.0]
[1718861386890,0.17,135.29,135.21,20.0]
[1718861388391,0.34,135.29,135.21,20.0]
[1718861388595,15.7253,135.28,135.21,20.0]
[1718861389493,15.7253,135.28,135.2,20.17]
[1718861390806,15.7253,135.28,135.21,0.34]
[1718861391200,15.7253,135.28,135.2,20.17]
[1718861391718,15.7253,135.28,135.22,22.22]
[1718861391902,15.7253,135.28,135.23,20.34]
[1718861392216,16.6071,135.32,135.24,0.17]
[1718861392415,16.6071,135.32,135.25,22.05]
[1718861392619,16.6071,135.32,135.26,20.0]
[1718861397704,16.6071,135.32,135.27,1.47758374]
[1718861397906,16.6071,135.32,135.26,20.0]
[1718861399028,16.6071,135.32,135.24,0.34]
[1718861400299,23.9972,135.32,135.23,20.0]
[1718861400511,0.17,135.31,135.23,20.0]
[1718861400714,16.6071,135.32,135.23,20.0]
[1718861400907,16.6071,135.32,135.24,0.34]
[1718861401619,16.6071,135.32,135.26,0.17]
[1718861401801,16.6071,135.32,135.26,20.0]
[1718861402613,16.6071,135.32,135.07,51.09697812]
[1718861402614,23.0552,135.31,135.16,259.6057]
[1718861402809,7.5617,135.29,135.19,22.05]
[1718861403014,16.6877,135.3,135.2,20.0]
[1718861403408,24.0477,135.3,135.25,7.36]
[1718861404414,16.5177,135.3,135.25,7.36]
[1718861404630,16.5177,135.3,135.26,7.36]
[1718861405410,16.5177,135.3,135.21,22.08]
[1718861405611,16.5177,135.3,135.23,0.17]
[1718861407233,16.5177,135.3,135.25,0.17]
[1718861407433,7.3879,135.36,135.25,0.17]
[1718861407434,21.7746,135.35,135.25,20.68]
[1718861408226,29.1629,135.35,135.25,20.68]
[1718861408436,0.17,135.34,135.25,20.68]
[1718861408637,0.17,135.34,135.26,1.47594688]
[1718861409725,21.7746,135.35,135.27,0.17]
[1718861409932,21.7746,135.35,135.27,22.76]
[1718861410414,15.5288,135.35,135.29,0.17]
[1718861410622,15.5288,135.35,135.31,0.17]
[1718861410929,15.5288,135.35,135.31,0.34]
[1718861411634,16.5173,135.38,135.31,0.34]
[1718861411848,16.5173,135.38,135.32,0.34]
[1718861412334,16.5173,135.38,135.33,0.34]
[1718861412533,15.4625,135.44,135.36,22.08]
[1718861412838,15.4625,135.44,135.37,0.17]
[1718861413009,15.4625,135.44,135.37,20.34]
[1718861413210,15.4625,135.44,135.37,20.51]
[1718861414438,22.846,135.44,135.33,0.17]
[1718861414729,15.4625,135.44,135.33,0.34]
[1718861414930,15.4625,135.44,135.33,20.34]
[1718861415125,22.8459,135.44,135.33,20.34]
[1718861415326,15.4625,135.44,135.33,20.34]
[1718861415514,0.17,135.43,135.34,0.17]
[1718861415714,15.4625,135.44,135.35,0.17]
[1718861415914,15.4625,135.44,135.35,22.59]
[1718861416126,15.4625,135.44,135.36,1.64613414]
[1718861416314,15.4625,135.44,135.35,0.17]
[1718861416519,7.3839,135.43,135.35,0.17]
[1718861417337,7.3845,135.42,135.33,42.08]
[1718861417520,22.846,135.44,135.34,0.17]
[1718861417830,0.34,135.43,135.34,0.51]
[1718861418030,15.4625,135.44,135.34,0.51]
[1718861418427,22.8458,135.44,135.34,0.51]
[1718861418814,15.4625,135.44,135.34,0.51]
[1718861419135,15.4625,135.44,135.35,0.17]
[1718861419837,15.4625,135.44,135.34,20.51]
[1718861420012,15.4625,135.44,135.35,0.17]
[1718861421014,7.7243,135.43,135.34,20.0]
[1718861421319,7.3853,135.41,135.3,28.2431]
[1718861421516,7.5558,135.4,135.31,20.0]
[1718861421732,0.34,135.42,135.31,20.0]
[1718861421926,22.8463,135.44,135.33,22.08]
[1718861422125,15.4625,135.44,135.33,22.08]
[1718861422326,15.4625,135.44,135.34,20.0]
[1718861422718,15.4625,135.44,135.35,0.17]
[1718861422933,15.4625,135.44,135.35,0.68]
[1718861423512,22.8458,135.44,135.35,0.68]
[1718861423712,15.4625,135.44,135.35,0.68]
[1718861425737,22.8459,135.44,135.35,0.68]
[1718861426439,7.3842,135.43,135.35,0.17]
[1718861426645,0.17,135.41,135.3,28.2431]
[1718861426811,7.3861,135.39,135.31,20.0]
[1718861427019,7.3866,135.38,135.31,20.0]
[1718861427219,7.3863,135.39,135.31,20.0]
[1718861427413,23.6601,135.4,135.31,20.0]
[1718861427634,23.6599,135.4,135.3,28.2431]
[1718861428038,23.6599,135.4,135.31,0.68]
[1718861428541,7.3861,135.39,135.31,0.51]
[1718861428928,7.3861,135.39,135.31,20.51]
[1718861429146,23.66,135.4,135.31,20.51]
[1718861431652,16.2744,135.4,135.31,20.51]
[1718861432656,23.6599,135.4,135.31,20.51]
[1718861433851,7.3871,135.38,135.31,20.0]
[1718861434033,6.3738,135.39,135.27,28.1615]
[1718861434235,7.3873,135.37,135.28,20.0]
[1718861435140,7.3868,135.38,135.29,0.34]
[1718861435440,6.3738,135.39,135.3,22.59]
[1718861435645,6.3738,135.39,135.31,20.17]
[1718861437639,7.3869,135.38,135.3,22.08]
[1718861437837,0.17,135.37,135.27,6.0815]
[1718861438028,0.34,135.37,135.28,20.0]
[1718861438231,0.17,135.36,135.28,20.0]
[1718861438447,7.3878,135.36,135.27,6.0815]
[1718861439547,7.3878,135.36,135.28,0.17]
[1718861439846,7.7272,135.37,135.28,0.17]
[1718861440250,0.17,135.37,135.28,20.17]
[1718861440427,7.3872,135.37,135.28,20.17]
[1718861440624,7.558,135.36,135.28,20.17]
[1718861443144,0.17,135.36,135.28,20.17]
[1718861443357,0.17,135.37,135.28,20.17]
[1718861443546,0.34,135.38,135.28,20.17]
[1718861444243,6.5438,135.39,135.3,0.17]
[1718861444446,6.5438,135.39,135.3,20.51]
[1718861445455,6.3738,135.39,135.3,20.51]
[1718861446038,13.7603,135.39,135.3,20.51]
[1718861446351,6.3738,135.39,135.3,20.17]
[1718861446535,7.3869,135.38,135.3,20.17]
[1718861446954,7.3869,135.38,135.3,20.0]
[1718861447332,0.17,135.37,135.27,6.0815]
[1718861447546,7.7274,135.37,135.27,6.0815]
[1718861448350,7.3891,135.34,135.27,6.0815]
[1718861448537,16.4869,135.34,135.26,22.08]
[1718861450053,16.4869,135.34,135.27,20.0]
[1718861456638,16.4869,135.34,135.28,0.17]
[1718861458339,16.4869,135.34,135.27,20.0]
[1718861459842,13.7316,135.33,135.23,642.0326]
[1718861460051,13.7316,135.33,135.24,20.0]
[1718861460240,6.342,135.33,135.24,20.0]
[1718861460462,6.002,135.33,135.24,20.0]
[1718861460859,13.3914,135.33,135.24,20.0]
[1718861461169,7.7299,135.32,135.24,20.0]
[1718861461350,0.34,135.32,135.23,636.0]
[1718861461841,7.73,135.32,135.23,636.0]
[1718861462059,7.5604,135.31,135.22,22.08]
[1718861462560,0.17,135.31,135.22,22.08]
[1718861462970,7.7301,135.32,135.22,22.08]
[1718861462971,0.34,135.32,135.23,20.0]
[1718861463965,0.17,135.32,135.23,20.0]
[1718861464166,6.002,135.33,135.24,0.51]
[1718861464459,6.002,135.33,135.26,0.17]
[1718861464663,6.002,135.33,135.26,20.51]
[1718861467874,6.002,135.33,135.27,0.17]
[1718861468088,6.002,135.33,135.27,0.51]
[1718861472488,6.002,135.33,135.26,20.0]
[1718861472690,13.3918,135.33,135.23,0.17]
[1718861472892,7.3903,135.32,135.23,20.0]
[1718861473091,7.7303,135.32,135.23,20.0]
[1718861473475,23.2288,135.31,135.23,20.0]
[1718861474285,15.8384,135.31,135.23,20.0]
[1718861475396,15.8384,135.31,135.24,0.68]
[1718861475981,15.8384,135.31,135.23,20.0]
[1718861476895,23.2289,135.31,135.23,20.0]
[1718861477088,15.8384,135.31,135.23,20.0]
[1718861478901,13.9374,135.29,135.17,41.67567853]
[1718861479098,15.7487,135.28,135.17,38.7369]
[1718861479280,7.3937,135.26,135.17,22.08]
[1718861479479,7.3928,135.27,135.17,22.08]
[1718861480100,21.7844,135.25,135.17,22.08]
[1718861480294,29.1783,135.25,135.15,7.415]
[1718861480483,29.1783,135.25,135.16,20.0]
[1718861480879,21.7844,135.25,135.16,20.0]
[1718861481287,21.7844,135.25,135.17,0.17]
[1718861481488,21.7844,135.25,135.17,0.51]
[1718861482301,21.7844,135.25,135.18,0.17]
[1718861482478,21.7844,135.25,135.19,0.17]
[1718861482684,21.7844,135.25,135.18,20.0]
[1718861483082,21.7844,135.25,135.19,0.51]
[1718861483287,21.7844,135.25,135.18,20.0]
[1718861483492,21.7844,135.25,135.19,0.17]
[1718861483804,21.7844,135.25,135.19,0.68]
[1718861484390,21.7844,135.25,135.19,0.34]
[1718861484589,21.7844,135.25,135.19,0.17]
[1718861485195,21.7844,135.25,135.18,20.0]
[1718861486210,21.7844,135.25,135.14,29.495]
[1718861486398,7.7347,135.24,135.15,20.0]
[1718861486908,0.34,135.24,135.15,20.0]
[1718861488506,6.3499,135.22,135.15,20.0]
[1718861488691,6.3499,135.22,135.15,0.17]
[1718861488886,6.3499,135.22,135.15,0.51]
[1718861490601,6.3499,135.22,135.15,0.17]
[1718861490800,6.3499,135.22,135.14,27.415]
[1718861492713,6.3499,135.22,135.08,24.015]
[1718861492714,15.4865,135.17,135.09,7.415]
[1718861492904,21.6394,135.15,135.06,7.415]
[1718861493214,21.6394,135.15,135.05,22.08]
[1718861494510,21.6394,135.15,135.06,20.0]
[1718861495894,21.6394,135.15,135.09,0.17]
[1718861496100,21.6394,135.15,135.09,20.68]
[1718861496305,21.6394,135.15,135.09,20.34]
[1718861496709,21.6394,135.15,135.1,0.17]
[1718861497011,21.6394,135.15,135.1,0.34]
[1718861497187,21.6394,135.15,135.09,20.17]
[1718861498702,21.6394,135.15,135.1,0.34]
[1718861500723,21.6394,135.15,135.09,20.17]
[1718861501598,21.6394,135.15,135.1,0.17]
[1718861501793,21.6394,135.15,135.09,20.17]
[1718861503217,21.6394,135.15,135.09,20.0]
[1718861503791,7.5698,135.14,135.05,22.08]
[1718861503997,29.0389,135.15,135.06,20.0]
[1718861504301,0.34,135.14,135.06,20.0]
[1718861504622,21.9794,135.15,135.06,20.0]
[1718861508217,15.7138,135.14,135.06,20.0]
[1718861509305,15.7138,135.14,135.07,0.34]
[1718861509615,15.7138,135.14,135.09,0.17]
[1718861509813,15.7138,135.14,135.09,20.34]
[1718861509996,15.7138,135.14,135.1,0.17]
[1718861511726,15.7138,135.14,135.1,0.34]
[1718861513523,15.7138,135.14,135.11,0.34]
[1718861513723,15.7138,135.14,135.11,22.42]
[1718861513931,15.7646,135.18,135.13,0.17]
[1718861514102,15.7646,135.18,135.13,0.51]
[1718861514809,15.7646,135.18,135.12,20.0]
[1718861517513,15.7646,135.18,135.11,22.59]
[1718861517905,15.7646,135.18,135.11,22.42]
[1718861519418,15.7646,135.18,135.11,22.25]
[1718861519907,15.7646,135.18,135.11,22.08]
[1718861521431,15.7646,135.18,135.09,0.17]
[1718861521608,15.7646,135.18,135.09,20.68]
[1718861523330,15.7646,135.18,135.12,0.17]
[1718861523518,15.7646,135.18,135.17,7.37]
[1718861523721,15.5007,135.21,135.17,7.37]
[1718861524023,7.3966,135.2,135.07,15.4694]
[1718861524224,28.9154,135.21,135.16,7.37]
[1718861525014,21.5454,135.21,135.17,7.37]
[1718861525420,21.5454,135.21,135.1,29.99]
[1718861525421,21.5454,135.21,135.12,22.1]
[1718861525620,21.5454,135.21,135.13,20.51]
[1718861528724,21.5454,135.21,135.14,0.17]
[1718861529224,21.5454,135.21,135.13,20.51]
[1718861529722,21.5454,135.21,135.07,22.8394]
[1718861529930,21.5454,135.21,135.1,22.1]
[1718861529931,7.3967,135.2,135.1,22.1]
[1718861530118,7.3967,135.2,135.11,20.0]
[1718861530521,28.9414,135.21,135.11,20.0]
[1718861530710,21.5454,135.21,135.11,20.0]
[1718861530910,28.9413,135.21,135.11,20.0]
[1718861531127,28.9413,135.21,135.12,0.34]
[1718861531519,21.5454,135.21,135.12,0.34]
[1718861531713,21.5454,135.21,135.13,0.17]
[1718861532111,15.7072,135.2,135.11,20.17]
[1718861532328,23.1038,135.2,135.11,20.17]
[1718861533416,15.7072,135.2,135.12,0.51]
[1718861541035,26.20894961,135.25,135.12,0.51]
[1718861541036,16.1656,135.24,135.18,0.17]
[1718861541237,16.1656,135.24,135.2,22.1]
[1718861541423,16.1656,135.24,135.21,20.0]
[1718861547539,16.1656,135.24,135.23,7.36]
[1718861551767,16.1656,135.24,135.21,20.0]
[1718861552067,16.1656,135.24,135.23,7.36]
[1718861554134,22.2337,135.29,135.23,7.36]
[1718861554334,22.2337,135.29,135.25,7.36]
[1718861555358,22.2337,135.29,135.2,0.17]
[1718861555536,22.2337,135.29,135.2,0.34]
[1718861555731,15.2226,135.27,135.18,20.0]
[1718861556064,15.2226,135.27,135.22,7.36]
[1718861556233,0.68,135.26,135.17,49.44]
[1718861556431,15.2226,135.27,135.22,7.36]
[1718861556632,15.2226,135.27,135.17,49.44]
[1718861556931,15.2226,135.27,135.24,7.36]
[1718861557343,15.2226,135.27,135.23,7.36]
[1718861557745,15.2226,135.27,135.24,7.36]
[1718861559054,15.2226,135.27,135.25,7.36]
[1718861559241,15.2226,135.27,135.24,7.36]
[1718861562664,15.2226,135.27,135.23,7.36]
[1718861563045,15.2226,135.27,135.18,0.17]
[1718861563251,15.2226,135.27,135.23,7.36]
[1718861563643,15.2226,135.27,135.24,7.36]
[1718861564063,15.2226,135.27,135.25,7.36]
[1718861564444,15.2226,135.27,135.26,7.36]
[1718861565361,6.4894,135.29,135.26,7.36]
[1718861565560,6.4894,135.29,135.27,7.36]
[1718861567470,15.4252,135.31,135.28,7.36]
[1718861567676,15.4252,135.31,135.29,7.36]
[1718861570948,15.4252,135.31,135.28,7.36]
[1718861573347,15.4252,135.31,135.24,29.44]
[1718861573556,22.8161,135.31,135.25,20.0]
[1718861573756,30.1761,135.31,135.25,7.36]
[1718861573968,22.7852,135.31,135.25,7.36]
[1718861574577,30.1756,135.31,135.19,282.24260684]
[1718861574878,30.1756,135.31,135.26,7.36]
[1718861576065,7.3911,135.3,135.26,7.36]
[1718861576273,7.3911,135.3,135.25,7.36]
[1718861576850,30.1758,135.31,135.25,7.36]
[1718861577061,0.34,135.3,135.25,7.36]
[1718861577655,0.34,135.3,135.21,0.17]
[1718861577851,0.34,135.3,135.25,7.36]
[1718861579768,15.4252,135.31,135.26,7.36]
[1718861579974,15.4252,135.31,135.27,7.36]
[1718861580149,15.4252,135.31,135.29,7.36]
[1718861580355,15.4252,135.31,135.3,7.36]
[1718861581489,16.2814,135.34,135.3,7.36]
[1718861581700,16.2814,135.34,135.32,7.36]
[1718861581986,16.2814,135.34,135.33,7.36]
[1718861583579,16.2814,135.34,135.31,7.36]
[1718861583782,16.2814,135.34,135.3,7.36]
[1718861583968,16.2814,135.34,135.31,7.36]
[1718861584169,6.0178,135.35,135.33,7.36]
[1718861584402,16.6639,135.37,135.33,7.36]
[1718861584563,0.51,135.36,135.31,7.36]
[1718861584766,7.87,135.36,135.31,7.36]
[1718861586770,7.87,135.36,135.3,7.36]
[1718861587485,0.51,135.36,135.31,7.36]
[1718861587788,16.6639,135.37,135.32,7.36]
[1718861587989,24.0239,135.37,135.32,7.36]
[1718861589007,16.6639,135.37,135.32,7.36]
[1718861589286,16.6639,135.37,135.33,7.36]
[1718861592698,16.6639,135.37,135.27,0.17]
[1718861592905,16.6639,135.37,135.35,7.36]
[1718861594203,16.6639,135.37,135.36,7.36]
[1718861595278,16.6639,135.37,135.35,7.36]
[1718861596300,16.6639,135.37,135.34,7.36]
[1718861596612,16.6639,135.37,135.31,29.44]
[1718861596787,16.6639,135.37,135.26,36.4226]
[1718861596986,16.6639,135.37,135.31,7.36]
[1718861597191,14.7485,135.35,135.25,6.4186]
[1718861597509,14.7485,135.35,135.29,7.36]
[1718861597809,7.36,135.35,135.3,7.36]
[1718861598007,0.17,135.36,135.31,7.36]
[1718861598308,0.17,135.36,135.3,7.36]
[1718861598309,7.36,135.35,135.3,7.36]
[1718861598509,15.6549,135.41,135.31,7.36]
[1718861598815,15.6549,135.41,135.39,7.36]
[1718861599014,15.6549,135.41,135.4,7.36]
[1718861600219,15.6549,135.41,135.32,20.17]
[1718861600387,15.6549,135.41,135.37,7.36]
[1718861600887,15.6549,135.41,135.38,7.36]
[1718861601523,15.6549,135.41,135.31,49.78]
[1718861601524,15.6549,135.41,135.35,0.17]
[1718861601690,15.6549,135.41,135.35,20.0]
[1718861602507,15.6549,135.41,135.34,22.03]
[1718861602709,15.6549,135.41,135.32,0.17]
[1718861602910,0.68,135.4,135.32,20.0]
[1718861603489,0.68,135.4,135.3,20.0]
[1718861603690,15.6549,135.41,135.3,20.0]
[1718861604106,15.6549,135.41,135.31,0.51]
[1718861604298,15.6549,135.41,135.32,22.2]
[1718861604503,15.6549,135.41,135.33,20.51]
[1718861604705,15.6549,135.41,135.34,0.17]
[1718861607315,15.6549,135.41,135.35,22.03]
[1718861607614,15.6549,135.41,135.36,20.0]
[1718861608315,15.6549,135.41,135.33,20.17]
[1718861609410,15.6549,135.41,135.35,0.17]
[1718861612603,15.6549,135.41,135.33,20.0]
[1718861612816,0.17,135.4,135.33,20.0]
[1718861613016,8.0656,135.4,135.32,20.0]
[1718861613215,0.68,135.4,135.32,20.0]
[1718861613419,0.34,135.4,135.32,20.0]
[1718861613716,0.17,135.4,135.3,20.0]
[1718861614123,15.6549,135.41,135.32,22.03]
[1718861614331,15.6549,135.41,135.33,20.51]
[1718861617823,0.17,135.4,135.33,20.0]